bitfinex/quotes_SOLUSD_20250805
["timestamp","ask_amount","ask_price","bid_price","bid_amount"]
[1754395622555,6.17981939,170.84,170.83,46.87377275]
[1754395622872,6.17981939,170.86,170.83,47.55377275]
[1754395623172,6.17981939,170.85,170.83,47.55377275]
[1754395623356,6.17981939,170.86,170.83,47.55377275]
[1754395623678,6.17981939,170.85,170.83,46.87377275]
[1754395624052,6.85981939,170.84,170.83,41.02]
[1754395625140,12.7132495,170.84,170.83,41.02]
[1754395626157,5.85171747,170.89,170.83,41.02]
[1754395626359,6.17981939,170.84,170.83,41.02]
[1754395626579,6.85981939,170.84,170.83,41.02]
[1754395628577,6.17981939,170.84,170.83,41.02]
[1754395629153,6.17981939,170.85,170.83,46.87377275]
[1754395629353,6.17981939,170.85,170.83,47.55377275]
[1754395629656,6.17981939,170.84,170.83,41.02]
[1754395630073,6.85981939,170.84,170.83,41.02]
[1754395630478,12.7132495,170.84,170.83,41.02]
[1754395630852,12.7132495,170.84,170.81,0.2]
[1754395630853,26.0,170.82,170.81,0.2]
[1754395631060,32.17981939,170.82,170.81,41.24]
[1754395631259,32.85981939,170.82,170.81,41.24]
[1754395631584,32.85981939,170.82,170.81,0.2]
[1754395632557,32.85981939,170.82,170.81,41.24]
[1754395633864,26.0,170.82,170.81,41.24]
[1754395634053,32.17981939,170.82,170.81,41.92]
[1754395634462,32.17981939,170.82,170.81,41.24]
[1754395635068,32.85981939,170.82,170.81,41.24]
[1754395635469,32.17981939,170.82,170.81,41.24]
[1754395636258,38.71393483,170.82,170.81,0.2]
[1754395637254,59.52904282,170.82,170.79,41.04]
[1754395637457,12.35963878,170.8,170.79,41.04]
[1754395637753,13.03963878,170.8,170.77,41.06]
[1754395637956,12.35963878,170.8,170.77,41.06]
[1754395638187,0.68,170.79,170.77,41.06]
[1754395638685,6.17981939,170.78,170.77,41.06]
[1754395639797,26.0,170.81,170.77,41.74]
[1754395639993,154.37981939,170.79,170.78,0.68]
[1754395640677,154.37981939,170.79,170.78,6.53548659]
[1754395640865,148.2,170.79,170.78,6.53548659]
[1754395642388,154.37981939,170.79,170.78,0.68]
[1754395642594,155.05981939,170.79,170.77,41.06]
[1754395642896,6.17981939,170.78,170.77,41.06]
[1754395643067,6.85981939,170.78,170.77,41.06]
[1754395644474,32.85981939,170.78,170.77,41.06]
[1754395644702,31.8561724,170.76,170.75,0.06]
[1754395644874,38.03599179,170.76,170.73,0.06]
[1754395645187,6.17981939,170.74,170.73,0.06]
[1754395645578,26.0,170.74,170.73,0.06]
[1754395645802,32.85981939,170.74,170.73,0.06]
[1754395646682,32.17981939,170.74,170.73,0.06]
[1754395651775,6.17981939,170.75,170.73,0.72]
[1754395651999,6.17981939,170.75,170.74,41.1]
[1754395652516,6.83981939,170.75,170.74,41.1]
[1754395654008,6.17981939,170.75,170.74,41.76]
[1754395654303,6.17981939,170.75,170.74,41.1]
[1754395654879,6.83981939,170.75,170.74,41.1]
[1754395655266,12.69633476,170.75,170.74,41.1]
[1754395656013,6.17981939,170.75,170.74,41.1]
[1754395656201,0.66,170.77,170.74,41.1]
[1754395656401,26.0,170.77,170.75,0.66]
[1754395656614,6.17981939,170.76,170.75,0.66]
[1754395656985,6.17981939,170.76,170.74,41.1]
[1754395657183,6.17981939,170.75,170.74,41.76]
[1754395657498,26.0,170.77,170.74,41.76]
[1754395657693,6.17981939,170.75,170.74,41.1]
[1754395661093,6.17981939,170.76,170.74,41.76]
[1754395661493,6.17981939,170.76,170.74,41.1]
[1754395661689,6.83981939,170.75,170.73,0.06]
[1754395661893,154.37981939,170.74,170.73,0.06]
[1754395662418,6.83981939,170.74,170.73,0.06]
[1754395662813,32.83981939,170.74,170.73,0.06]
[1754395663021,12.69667777,170.74,170.73,0.06]
[1754395663526,17.04348553,170.74,170.73,0.06]
[1754395663698,43.04348553,170.74,170.73,0.06]
[1754395664034,32.1497011,170.74,170.73,0.06]
[1754395664319,27.80289334,170.74,170.73,0.06]
[1754395664529,53.80289334,170.74,170.73,0.06]
[1754395664828,27.80289334,170.74,170.73,0.06]
[1754395665127,32.50397317,170.74,170.73,0.06]
[1754395665526,36.85075072,170.74,170.73,0.06]
[1754395665731,32.50397317,170.74,170.73,0.06]
[1754395665895,40.56889956,170.74,170.73,0.06]
[1754395666228,26.0,170.71,170.7,0.06]
[1754395666538,53.46585435,170.71,170.7,0.06]
[1754395666722,66.38290489,170.71,170.7,0.06]
[1754395666926,62.03671616,170.71,170.7,0.06]
[1754395667222,67.8946038,170.71,170.7,0.06]
[1754395667528,0.14216157,170.7,170.65,0.2]
[1754395667703,32.17981939,170.66,170.65,0.2]
[1754395668410,32.17981939,170.66,170.65,0.86]
[1754395669014,32.17981939,170.66,170.65,0.2]
[1754395669223,32.83981939,170.66,170.65,0.2]
[1754395669434,38.69942328,170.66,170.65,0.2]
[1754395669604,32.17981939,170.66,170.65,0.2]
[1754395669803,26.0,170.66,170.65,0.2]
[1754395670014,32.17981939,170.66,170.65,0.86]
[1754395670312,32.17981939,170.66,170.65,0.2]
[1754395670516,32.83981939,170.66,170.65,0.2]
[1754395670697,38.69942328,170.66,170.65,0.2]
[1754395671108,32.17981939,170.66,170.65,0.2]
[1754395671726,26.0,170.66,170.65,0.86]
[1754395671919,6.17981939,170.66,170.65,0.86]
[1754395673323,32.17981939,170.66,170.65,0.86]
[1754395673525,6.51834327,170.7,170.65,0.86]
[1754395673736,6.17981939,170.66,170.65,0.86]
[1754395673935,6.17981939,170.69,170.65,47.85990817]
[1754395674118,7.91086181,170.71,170.66,0.66]
[1754395674317,6.17981939,170.7,170.66,0.66]
[1754395675215,6.17981939,170.7,170.67,5.85926056]
[1754395675411,6.17981939,170.7,170.68,0.66]
[1754395675617,6.17981939,170.7,170.66,6.51948605]
[1754395675850,6.17981939,170.69,170.67,0.66]
[1754395676344,14.0906812,170.71,170.68,0.66]
[1754395676826,6.17981939,170.7,170.68,0.66]
[1754395677021,6.17981939,170.69,170.66,6.51948605]
[1754395677356,26.0,170.7,170.65,47.85987633]
[1754395677516,6.17981939,170.67,170.65,47.85987633]
[1754395677838,6.17981939,170.66,170.65,41.34]
[1754395678045,6.83981939,170.66,170.65,41.34]
[1754395678817,6.83981939,170.66,170.65,0.2]
[1754395679522,12.69942328,170.66,170.65,0.2]
[1754395681122,26.0,170.63,170.62,0.06]
[1754395681349,26.0,170.59,170.56,0.2]
[1754395681534,6.17981939,170.58,170.56,0.2]
[1754395681841,6.17981939,170.6,170.56,0.2]
[1754395682545,6.17981939,170.62,170.58,0.66]
[1754395682736,6.17981939,170.63,170.58,6.83981939]
[1754395683043,6.17981939,170.63,170.59,0.66]
[1754395683350,6.17981939,170.63,170.6,0.66]
[1754395683534,6.17981939,170.62,170.6,0.66]
[1754395683725,6.17981939,170.62,170.6,6.52163674]
[1754395684042,6.17981939,170.62,170.6,0.66]
[1754395684249,6.17981939,170.62,170.59,5.86193756]
[1754395684440,6.17981939,170.62,170.59,6.52193756]
[1754395684641,6.17981939,170.62,170.59,6.5218999]
[1754395686646,174.2,170.63,170.6,0.66]
[1754395686828,174.2,170.63,170.59,12.04171929]
[1754395687022,174.2,170.63,170.61,0.66]
[1754395687344,180.37981939,170.63,170.61,0.66]
[1754395687545,180.37981939,170.63,170.59,6.5218999]
[1754395687747,180.37981939,170.63,170.6,6.52163901]
[1754395688065,6.17981939,170.62,170.59,5.86188398]
[1754395688547,6.17981939,170.62,170.59,6.52188398]
[1754395689927,6.88981939,170.62,170.58,5.86235197]
[1754395690128,6.17981939,170.61,170.58,6.52235197]
[1754395691733,6.20981939,170.62,170.58,6.52235197]
[1754395691954,6.20981939,170.62,170.59,6.52196481]
[1754395692255,0.03,170.62,170.61,6.17981939]
[1754395692432,0.03,170.62,170.61,48.20198096]
[1754395692628,0.03,170.62,170.61,63.30819653]
[1754395694462,0.03,170.62,170.61,69.16951767]
[1754395695626,7.39293423,170.66,170.62,15.24837714]
[1754395695827,7.39293423,170.66,170.65,6.17981939]
[1754395696045,7.39293423,170.66,170.65,48.09981939]
[1754395696464,7.39293423,170.66,170.65,53.95976665]
[1754395697969,7.39293423,170.66,170.65,47.11994726]
[1754395698349,7.39293423,170.66,170.65,53.29976665]
[1754395698544,7.39293423,170.66,170.65,53.95976665]
[1754395699291,7.39293423,170.66,170.65,54.10192822]
[1754395699575,148.2,170.74,170.66,15.24837714]
[1754395699781,148.2,170.74,170.72,6.17981939]
[1754395699948,148.2,170.74,170.73,47.11720142]
[1754395701851,0.03,170.75,170.73,53.95702081]
[1754395702668,0.03,170.75,170.73,53.29702081]
[1754395703055,0.03,170.75,170.73,53.95702081]
[1754395703371,0.03,170.75,170.74,6.98198096]
[1754395704175,0.03,170.75,170.74,12.83883934]
[1754395705358,0.03,170.75,170.74,12.17883934]
[1754395705566,0.03,170.75,170.74,12.83883934]
[1754395706675,0.03,170.75,170.74,6.65901995]
[1754395706881,0.03,170.75,170.74,12.83883934]
[1754395708489,0.03,170.75,170.74,6.65901995]
[1754395708780,0.03,170.75,170.74,12.83883934]
[1754395709281,0.03,170.75,170.74,5.85685838]
[1754395709485,0.68,170.75,170.74,5.85685838]
[1754395709784,0.03,170.75,170.74,5.85685838]
[1754395710082,0.03,170.75,170.74,12.17883934]
[1754395710268,0.03,170.75,170.74,12.84883934]
[1754395711258,0.03,170.75,170.74,12.17883934]
[1754395711687,0.03,170.75,170.74,12.84883934]
[1754395711855,0.03,170.75,170.74,12.17883934]
[1754395712360,0.03,170.75,170.74,5.85685838]
[1754395712566,0.68,170.75,170.74,5.85685838]
[1754395714892,0.68,170.75,170.73,47.11707856]
[1754395715186,148.2,170.74,170.73,47.11707856]
[1754395715682,148.85,170.74,170.73,41.26]
[1754395715883,148.85,170.74,170.73,41.2]
[1754395717083,148.2,170.73,170.7,5.85823081]
[1754395717390,148.85,170.73,170.71,41.2]
[1754395717586,0.65,170.72,170.71,41.2]
[1754395717889,148.2,170.73,170.71,41.2]
[1754395718566,148.2,170.73,170.71,48.04981939]
[1754395718892,148.2,170.73,170.72,6.52754451]
[1754395719263,148.2,170.73,170.72,12.84952547]
[1754395719484,148.2,170.73,170.72,5.85754451]
[1754395720872,148.85,170.73,170.71,47.05786919]
[1754395721071,0.65,170.72,170.71,47.05786919]
[1754395723099,6.82981939,170.72,170.71,41.2]
[1754395723491,12.6873639,170.72,170.71,41.2]
[1754395723690,6.82981939,170.72,170.71,41.2]
[1754395727709,26.03,170.75,170.71,47.05783229]
[1754395727710,0.03,170.75,170.71,47.05783229]
[1754395727900,0.03,170.75,170.72,0.67]
[1754395728213,0.03,170.75,170.73,47.39981939]
[1754395728382,0.03,170.75,170.73,41.89]
[1754395728708,0.03,170.75,170.74,5.85685838]
[1754395730198,0.03,170.75,170.74,6.52685838]
[1754395730511,0.03,170.75,170.74,5.85685838]
[1754395731601,0.03,170.75,170.74,12.70667777]
[1754395731799,0.03,170.75,170.74,12.84883934]
[1754395732027,0.03,170.75,170.74,27.95505491]
[1754395732194,0.03,170.77,170.75,15.24837714]
[1754395732399,0.03,170.77,170.76,47.54198096]
[1754395732732,0.03,170.77,170.76,48.21198096]
[1754395734414,0.03,170.77,170.76,54.06815336]
[1754395738926,0.03,170.77,170.76,69.17436893]
[1754395739101,0.1,170.8,170.79,6.17981939]
[1754395739301,0.1,170.8,170.79,47.35981939]
[1754395739502,0.1,170.8,170.79,48.06981939]
[1754395740314,0.1,170.8,170.79,47.35981939]
[1754395740720,0.1,170.8,170.79,6.17981939]
[1754395740933,0.77,170.8,170.79,47.03514374]
[1754395741420,0.77,170.8,170.79,41.18]
[1754395743121,0.1,170.8,170.79,47.03514374]
[1754395743432,0.1,170.8,170.79,53.92496313]
[1754395744307,0.1,170.8,170.79,53.21496313]
[1754395745430,0.1,170.8,170.79,53.92496313]
[1754395745805,0.1,170.8,170.79,69.17334027]
[1754395747416,0.1,170.8,170.79,86.75266727]
[1754395750823,148.2,170.83,170.81,0.14216157]
[1754395751139,7.3358775,170.84,170.82,48.02981939]
[1754395751336,7.3358775,170.84,170.83,6.17981939]
[1754395751919,148.2,170.88,170.84,0.14216157]
[1754395752115,148.2,170.88,170.87,6.17981939]
[1754395752422,148.2,170.88,170.87,47.35981939]
[1754395752631,148.87,170.88,170.87,47.35981939]
[1754395753034,148.87,170.88,170.87,53.2122218]
[1754395753341,148.87,170.88,170.87,47.03240241]
[1754395754323,148.87,170.88,170.87,41.18]
[1754395755414,148.9,170.88,170.87,41.18]
[1754395755611,155.07981939,170.88,170.81,0.71]
[1754395755952,6.17981939,170.83,170.79,17.578297]
[1754395756131,6.84981939,170.82,170.8,41.18]
[1754395756335,0.67,170.81,170.8,41.18]
[1754395756553,174.2,170.87,170.8,41.18]
[1754395756728,0.67,170.83,170.8,41.18]
[1754395757340,0.67,170.83,170.8,47.03461248]
[1754395758250,0.67,170.86,170.81,6.17981939]
[1754395758424,6.84981939,170.85,170.82,41.26]
[1754395758625,6.17981939,170.85,170.82,41.26]
[1754395758849,0.67,170.84,170.82,41.26]
[1754395759135,0.67,170.83,170.82,41.26]
[1754395759327,6.84981939,170.83,170.82,41.26]
[1754395760324,6.84981939,170.83,170.78,5.85548659]
[1754395760527,5.85347346,170.84,170.79,41.26]
[1754395760528,6.17981939,170.81,170.79,41.26]
[1754395761046,6.17981939,170.82,170.79,41.26]
[1754395761248,6.17981939,170.82,170.79,47.11504682]
[1754395761439,6.84981939,170.82,170.79,47.11504682]
[1754395762370,0.67,170.82,170.79,47.11504682]
[1754395762539,6.17981939,170.84,170.8,0.71]
[1754395762740,6.17981939,170.84,170.81,41.24]
[1754395763065,6.84981939,170.85,170.81,41.95]
[1754395764773,6.84981939,170.85,170.82,5.85411544]
[1754395764934,6.17981939,170.85,170.83,41.26]
[1754395765474,148.2,170.86,170.83,41.26]
[1754395765763,6.17981939,170.85,170.83,41.26]
[1754395766463,155.04981939,170.86,170.83,41.26]
[1754395766862,155.04981939,170.86,170.83,47.11367597]
[1754395767358,6.17981939,170.85,170.83,47.11367597]
[1754395767544,6.84981939,170.85,170.83,47.11367597]
[1754395767739,6.17981939,170.85,170.83,47.11367597]
[1754395768053,154.37981939,170.86,170.83,47.82367597]
[1754395768260,148.2,170.86,170.83,47.82367597]
[1754395768444,148.2,170.85,170.83,47.82367597]
[1754395768657,148.2,170.85,170.84,0.71]
[1754395768856,0.03,170.88,170.85,5.8530875]
[1754395769156,0.03,170.88,170.86,41.22]
[1754395769559,0.69,170.87,170.86,41.22]
[1754395771677,6.20981939,170.88,170.86,41.22]
[1754395771845,6.89981939,170.88,170.86,41.22]
[1754395772046,0.72,170.88,170.86,47.07270401]
[1754395772284,0.03,170.88,170.87,0.66]
[1754395773570,0.03,170.88,170.87,6.51240241]
[1754395774468,0.03,170.88,170.87,5.85240241]
[1754395774861,0.72,170.88,170.87,5.85240241]
[1754395775156,0.03,170.88,170.87,5.85240241]
[1754395775558,0.03,170.88,170.86,47.07266609]
[1754395777380,0.03,170.88,170.86,47.73266609]
[1754395777684,0.03,170.88,170.87,0.66]
[1754395777859,0.03,170.88,170.86,53.91248548]
[1754395778061,0.03,170.88,170.86,47.07266609]
[1754395778276,0.69,170.87,170.86,41.22]
[1754395778589,0.03,170.88,170.86,47.07270746]
[1754395779574,0.72,170.88,170.86,47.07270746]
[1754395780170,0.72,170.88,170.86,41.22]
[1754395780369,148.2,170.87,170.86,41.22]
[1754395781085,155.06981939,170.87,170.86,41.22]
[1754395781491,148.2,170.86,170.82,0.06]
[1754395781660,6.17981939,170.83,170.82,0.06]
[1754395781987,148.2,170.85,170.83,0.66]
[1754395782195,148.2,170.85,170.84,41.16]
[1754395782789,148.2,170.85,170.84,5.85343011]
[1754395782989,148.2,170.85,170.84,47.03343011]
[1754395783180,148.2,170.85,170.84,41.18]
[1754395783572,0.03,170.88,170.84,47.35981939]
[1754395783890,0.03,170.88,170.85,0.66]
[1754395784066,0.03,170.88,170.84,6.17981939]
[1754395784269,0.72,170.88,170.85,41.18]
[1754395784865,0.72,170.88,170.85,47.033013]
[1754395785087,0.03,170.88,170.85,47.693013]
[1754395786175,0.72,170.88,170.85,47.033013]
[1754395786580,6.89981939,170.88,170.85,47.033013]
[1754395786788,6.89981939,170.88,170.85,41.18]
[1754395786970,6.86981939,170.87,170.85,41.18]
[1754395787170,0.69,170.86,170.85,41.18]
[1754395787380,6.86981939,170.86,170.85,41.18]
[1754395790900,6.17981939,170.86,170.85,41.18]
[1754395791099,32.20981939,170.88,170.85,41.84]
[1754395791274,4.34985,170.87,170.85,41.84]
[1754395791680,32.20981939,170.88,170.85,41.84]
[1754395791998,6.17981939,170.87,170.85,41.18]
[1754395792305,6.17981939,170.86,170.85,41.18]
[1754395794784,6.17981939,170.87,170.85,41.18]
[1754395795689,6.17981939,170.87,170.86,0.66]
[1754395796890,6.17981939,170.87,170.85,41.18]
[1754395797091,6.86981939,170.87,170.85,41.18]
[1754395797292,6.17981939,170.87,170.85,41.18]
[1754395797596,6.17981939,170.87,170.85,47.03298794]
[1754395797787,0.03,170.88,170.86,0.66]
[1754395797989,0.03,170.88,170.87,41.14]
[1754395798390,0.03,170.88,170.87,41.8]
[1754395799305,0.03,170.88,170.87,47.65240241]
[1754395799498,0.03,170.88,170.87,53.8322218]
[1754395799801,0.03,170.88,170.87,69.08059894]
[1754395800984,0.03,170.88,170.87,47.69240241]
[1754395801206,0.03,170.88,170.87,47.03240241]
[1754395801386,6.89981939,170.88,170.87,41.18]
[1754395802204,6.20981939,170.88,170.87,41.18]
[1754395803201,0.03,170.88,170.87,41.18]
[1754395803588,6.89981939,170.88,170.87,41.18]
[1754395803906,6.89981939,170.88,170.83,5.85373043]
[1754395804090,6.17981939,170.85,170.84,41.18]
[1754395804592,6.86981939,170.85,170.84,41.18]
[1754395804993,6.17981939,170.85,170.84,41.18]
[1754395805908,6.20981939,170.88,170.84,47.75343011]
[1754395806114,6.20981939,170.88,170.85,0.72]
[1754395806428,0.03,170.88,170.86,41.92]
[1754395806723,0.03,170.88,170.87,0.72]
[1754395806922,0.03,170.88,170.86,41.2]
[1754395807719,0.03,170.88,170.86,47.77250211]
[1754395811605,6.89981939,170.88,170.86,41.2]
[1754395811815,6.20981939,170.88,170.86,41.2]
[1754395812218,6.20981939,170.88,170.86,41.92]
[1754395812426,0.03,170.88,170.86,41.92]
[1754395812602,0.03,170.88,170.86,47.77272556]
[1754395812803,148.2,170.87,170.86,47.77272556]
[1754395814319,148.2,170.87,170.86,47.05272556]
[1754395814517,148.2,170.87,170.86,41.2]
[1754395815019,155.06981939,170.87,170.82,0.06]
[1754395815207,6.86981939,170.86,170.83,41.14]
[1754395815408,154.37981939,170.85,170.83,41.14]
[1754395815625,155.06981939,170.85,170.83,41.14]
[1754395816423,154.37981939,170.85,170.83,46.99367165]
[1754395816936,154.37981939,170.85,170.83,47.71367165]
[1754395817132,148.2,170.85,170.84,0.72]
[1754395818032,148.2,170.85,170.84,5.85343011]
[1754395820045,148.2,170.85,170.84,47.03343011]
[1754395820255,148.2,170.85,170.84,47.75343011]
[1754395821018,148.2,170.85,170.84,53.9332495]
[1754395821236,148.2,170.85,170.84,47.03343011]
[1754395821424,148.89,170.85,170.84,41.18]
[1754395822123,148.2,170.85,170.84,47.03343011]
[1754395822347,148.89,170.85,170.84,41.18]
[1754395822538,155.06981939,170.85,170.84,41.18]
[1754395822941,148.89,170.85,170.84,41.18]
[1754395824728,6.86981939,170.85,170.84,41.18]
[1754395825623,6.17981939,170.85,170.84,41.18]
[1754395825845,6.86981939,170.85,170.84,41.16]
[1754395826522,12.72290689,170.85,170.84,41.16]
[1754395826731,148.2,170.84,170.82,0.06]
[1754395827046,6.17981939,170.83,170.82,0.06]
[1754395827231,6.17981939,170.83,170.82,41.22]
[1754395827433,6.86981939,170.83,170.82,41.22]
[1754395827746,6.86981939,170.83,170.82,0.06]
[1754395828539,12.72359214,170.83,170.82,0.06]
[1754395830658,17.07348421,170.83,170.82,0.06]
[1754395831280,43.07348421,170.83,170.82,0.06]
[1754395831575,26.0,170.8,170.77,41.22]
[1754395831746,6.17981939,170.78,170.77,41.22]
[1754395831940,6.85981939,170.78,170.77,41.22]
[1754395833259,148.2,170.79,170.77,41.22]
[1754395833465,6.17981939,170.78,170.77,41.22]
[1754395834148,154.37981939,170.79,170.77,41.9]
[1754395834875,154.37981939,170.79,170.77,41.22]
[1754395836454,6.17981939,170.78,170.77,41.22]
[1754395836653,6.85981939,170.78,170.77,41.22]
[1754395837358,0.68,170.78,170.77,41.22]
[1754395837665,6.17981939,170.78,170.77,41.22]
[1754395838179,148.2,170.79,170.77,41.9]
[1754395838180,154.37981939,170.79,170.77,41.9]
[1754395838480,154.37981939,170.79,170.77,41.22]
[1754395838666,148.2,170.79,170.78,0.68]
[1754395839177,6.17981939,170.82,170.78,0.68]
[1754395839364,6.17981939,170.84,170.79,6.17981939]
[1754395839566,6.17981939,170.84,170.8,41.14]
[1754395839785,6.17981939,170.84,170.8,41.82]
[1754395840286,6.85981939,170.84,170.8,47.67467937]
[1754395840961,6.17981939,170.84,170.81,0.68]
[1754395841398,6.17981939,170.86,170.82,0.68]
[1754395841693,180.37981939,170.87,170.83,41.84]
[1754395841890,4.33373895,170.86,170.83,41.84]
[1754395843579,6.85981939,170.86,170.83,41.16]
[1754395844479,6.17981939,170.84,170.83,41.16]
[1754395844667,6.85981939,170.84,170.83,41.14]
[1754395845866,6.17981939,170.84,170.83,41.14]
[1754395846168,6.17981939,170.85,170.83,41.14]
[1754395846580,6.17981939,170.84,170.83,41.14]
[1754395847419,26.0,170.86,170.83,41.82]
[1754395847585,32.17981939,170.86,170.83,46.99372976]
[1754395847902,148.2,170.87,170.84,6.53333086]
[1754395848068,148.2,170.87,170.84,12.71315025]
[1754395848260,148.2,170.87,170.85,0.68]
[1754395848461,148.2,170.87,170.86,41.82]
[1754395848686,148.2,170.87,170.86,41.14]
[1754395851070,148.2,170.87,170.86,41.82]
[1754395851491,148.2,170.87,170.86,41.14]
[1754395853392,155.05981939,170.87,170.81,0.68]
[1754395853589,6.17981939,170.85,170.82,41.1]
[1754395853998,155.05981939,170.84,170.82,41.1]
[1754395856004,6.85981939,170.83,170.82,41.1]
[1754395856416,148.2,170.82,170.77,0.06]
[1754395856616,6.17981939,170.79,170.78,41.1]
[1754395856994,6.85981939,170.79,170.78,41.1]
[1754395859014,6.17981939,170.79,170.78,41.1]
[1754395859401,6.86981939,170.79,170.78,41.1]
[1754395859812,6.17981939,170.79,170.78,41.1]
[1754395862325,6.17981939,170.8,170.78,41.77]
[1754395862629,6.17981939,170.81,170.78,41.77]
[1754395862799,6.17981939,170.8,170.78,41.77]
[1754395862997,6.17981939,170.81,170.79,0.67]
[1754395863212,148.2,170.82,170.8,0.67]
[1754395863515,154.37981939,170.82,170.81,41.12]
[1754395864317,155.06981939,170.82,170.81,41.12]
[1754395865692,154.37981939,170.82,170.81,41.12]
[1754395866118,148.2,170.82,170.81,41.12]
[1754395866413,148.2,170.82,170.81,47.64445816]
[1754395867218,148.2,170.82,170.81,41.79]
[1754395867617,148.2,170.82,170.81,47.64445816]
[1754395869126,32.17981939,170.83,170.81,41.12]
[1754395870414,6.86981939,170.82,170.81,41.12]
[1754395870817,6.17981939,170.82,170.81,41.12]
[1754395877442,6.86981939,170.82,170.81,41.12]
[1754395878027,6.17981939,170.82,170.81,41.12]
[1754395879801,32.17981939,170.83,170.81,41.12]
[1754395880001,26.0,170.83,170.81,41.79]
[1754395880235,6.17981939,170.83,170.81,41.79]
[1754395880433,6.17981939,170.85,170.82,0.67]
[1754395880620,6.17981939,170.85,170.83,41.79]
[1754395881244,6.17981939,170.85,170.83,41.12]
[1754395884441,148.2,170.84,170.83,41.12]
[1754395885437,148.2,170.84,170.83,47.64377275]
[1754395886148,148.2,170.84,170.83,41.79]
[1754395886553,148.2,170.84,170.83,41.12]
[1754395887647,148.2,170.84,170.83,41.79]
[1754395888456,148.2,170.84,170.83,41.12]
[1754395889759,6.17981939,170.85,170.83,41.12]
[1754395890138,6.17981939,170.85,170.84,0.69]
[1754395890541,6.17981939,170.85,170.83,41.12]
[1754395891930,6.88981939,170.85,170.83,41.12]
[1754395893447,6.88981939,170.84,170.83,41.12]
[1754395893649,6.17981939,170.84,170.83,41.12]
[1754395894233,6.88981939,170.84,170.79,0.06]
[1754395894434,6.17981939,170.8,170.79,0.06]
[1754395894631,6.17981939,170.8,170.79,41.16]
[1754395894856,6.88981939,170.8,170.79,41.16]
[1754395896159,4.34546254,170.8,170.79,41.16]
[1754395896340,6.17981939,170.8,170.79,41.16]
[1754395897274,6.88981939,170.8,170.79,41.16]
[1754395899257,12.74462032,170.8,170.79,41.16]
[1754395899446,17.09177008,170.8,170.79,41.16]
[1754395899643,21.00419408,170.8,170.79,0.06]
[1754395904248,53.18401347,170.8,170.79,0.06]
[1754395904545,26.0,170.78,170.77,0.06]
[1754395904761,40.43939315,170.78,170.77,0.06]
[1754395905173,41.14939315,170.78,170.77,0.06]
[1754395905541,41.14388485,170.78,170.77,0.06]
[1754395905739,41.14388485,170.78,170.73,41.1]
[1754395905740,97.35010042,170.78,170.73,41.1]
[1754395905962,32.17981939,170.74,170.73,41.1]
[1754395906169,40.42843253,170.74,170.69,0.69]
[1754395906374,10.90891468,170.73,170.7,41.1]
[1754395906674,0.71,170.73,170.7,41.1]
[1754395906870,6.17981939,170.71,170.7,41.79]
[1754395908150,6.17981939,170.71,170.7,41.1]
[1754395908571,6.17981939,170.71,170.7,41.79]
[1754395908849,0.71,170.77,170.7,47.64823081]
[1754395909057,10.51577702,170.76,170.71,6.86981939]
[1754395909252,6.17981939,170.76,170.72,0.69]
[1754395909457,6.17981939,170.75,170.73,41.1]
[1754395909666,148.2,170.74,170.73,41.79]